bitfinex-derivatives/quotes_BTCF0:USTF0_20250903
["timestamp","ask_amount","ask_price","bid_price","bid_amount"]
[1756942338067,2.42328842,111840.0,111830.0,1.08452]
[1756942339070,2.42328842,111840.0,111830.0,0.27404]
[1756942339266,2.47129903,111840.0,111830.0,1.08496]
[1756942339968,2.47129903,111840.0,111830.0,0.02404]
[1756942340170,2.47129903,111840.0,111830.0,0.83496]
[1756942340864,2.47129903,111840.0,111830.0,0.81098]
[1756942341266,2.47129903,111840.0,111830.0,0.83576]
[1756942342569,2.42328842,111840.0,111830.0,0.02488]
[1756942343369,2.48730257,111840.0,111830.0,0.02488]
[1756942343865,2.48730257,111840.0,111830.0,0.0001]
[1756942347472,3.29834257,111840.0,111830.0,0.0001]
[1756942348270,0.01455,111830.0,111820.0,0.81098]
[1756942348472,0.03952,111820.0,111810.0,0.85139]
[1756942348674,1.17170402,111820.0,111810.0,0.85129]
[1756942348873,1.19710544,111820.0,111810.0,0.85129]
[1756942349167,2.30048252,111820.0,111810.0,0.85129]
[1756942349573,2.38229252,111820.0,111810.0,0.85129]
[1756942349772,1.27891544,111820.0,111810.0,0.85129]
[1756942349965,1.27791544,111820.0,111810.0,0.85129]
[1756942350164,2.8157078,111820.0,111810.0,0.85129]
[1756942350366,2.82452383,111820.0,111810.0,0.85129]
[1756942350577,2.82552383,111820.0,111810.0,0.85129]
[1756942351871,2.45773147,111820.0,111810.0,0.85129]
[1756942352076,2.77746217,111820.0,111810.0,0.03973]
[1756942352280,3.51304689,111820.0,111810.0,0.84658]
[1756942353181,3.57706104,111820.0,111810.0,0.84658]
[1756942353380,3.51304689,111820.0,111810.0,0.84658]
[1756942353575,2.34304689,111820.0,111810.0,0.86153]
[1756942353877,2.39110438,111820.0,111810.0,0.86153]
[1756942354078,3.56110438,111820.0,111810.0,0.86153]
[1756942354676,3.63443438,111820.0,111810.0,0.86153]
[1756942354980,3.58637689,111820.0,111810.0,0.86153]
[1756942355474,3.58637689,111820.0,111810.0,0.02478]
[1756942355983,3.58637689,111820.0,111810.0,0.77638]
[1756942356481,3.58637689,111820.0,111810.0,0.84802]
[1756942359579,3.58637689,111820.0,111810.0,0.84758]
[1756942360290,3.58637689,111820.0,111810.0,0.02478]
[1756942360479,3.58637689,111820.0,111810.0,0.77182]
[1756942361786,3.58637689,111820.0,111810.0,0.84738]
[1756942363788,3.63443438,111820.0,111810.0,0.84738]
[1756942365789,3.63467959,111820.0,111810.0,0.84738]
[1756942366595,3.63467959,111820.0,111810.0,0.02478]
[1756942366778,3.63467959,111820.0,111810.0,0.8467]
[1756942366978,3.63467959,111820.0,111810.0,0.8468]
[1756942367289,3.5866221,111820.0,111810.0,0.8468]
[1756942367884,3.63467959,111820.0,111810.0,0.0001]
[1756942368089,2.46467959,111820.0,111810.0,0.0001]
[1756942368493,2.4166221,111820.0,111810.0,0.0001]
[1756942369192,2.48063625,111820.0,111810.0,0.0001]
[1756942369389,2.48263625,111820.0,111810.0,0.0001]
[1756942369783,2.48363625,111820.0,111810.0,0.0001]
[1756942370592,1.20698,111810.0,111800.0,0.04408727]
[1756942370789,3.37459607,111810.0,111800.0,0.04398727]
[1756942371789,2.20459607,111810.0,111800.0,0.04398727]
[1756942372095,2.20459607,111810.0,111800.0,0.04498727]
[1756942372994,2.20559607,111810.0,111800.0,0.04498727]
[1756942374383,0.00654,111800.0,111770.0,2.26519]
[1756942374588,1.49443944,111780.0,111770.0,0.03773]
[1756942374789,2.25088607,111780.0,111770.0,0.02278]
[1756942375189,0.03698,111770.0,111760.0,0.73096331]
[1756942375396,1.16121899,111770.0,111760.0,0.73096331]
[1756942375894,1.16021899,111770.0,111760.0,0.73096331]
[1756942376096,1.16021899,111770.0,111760.0,0.98096331]
[1756942376294,0.39564663,111770.0,111760.0,0.99576331]
[1756942376497,0.76243899,111770.0,111760.0,1.35656331]
[1756942376694,0.16,111770.0,111760.0,1.35656331]
[1756942376894,0.23003027,111770.0,111760.0,1.35656331]
[1756942377089,0.36789236,111780.0,111760.0,1.35656331]
[1756942377398,0.37888783,111780.0,111770.0,0.39834]
[1756942377586,0.37888783,111780.0,111770.0,0.64834]
[1756942378596,0.74668019,111780.0,111770.0,0.64834]
[1756942378801,0.74968019,111780.0,111770.0,0.64934]
[1756942379205,0.74968019,111780.0,111770.0,0.39934]
[1756942379902,0.75068019,111780.0,111770.0,0.39934]
[1756942380303,0.38288783,111780.0,111770.0,0.39934]
[1756942380504,0.83352019,111780.0,111770.0,0.39934]
[1756942381204,0.9056688,111780.0,111770.0,0.39934]
[1756942381399,0.9056688,111780.0,111770.0,0.64934]
[1756942385503,0.90596416,111780.0,111770.0,0.64934]
[1756942391307,0.53787644,111780.0,111770.0,0.64934]
[1756942391510,0.53787644,111780.0,111770.0,0.64944]
[1756942401015,0.53787644,111780.0,111770.0,0.39944]
[1756942401219,2.27488732,111780.0,111770.0,1.20356]
[1756942401518,2.27488732,111780.0,111770.0,0.84256]
[1756942402318,2.27488732,111780.0,111770.0,0.81982]
[1756942402711,2.27488732,111780.0,111770.0,0.02525]
[1756942402712,2.63568732,111780.0,111770.0,0.02525]
[1756942403018,2.63568732,111780.0,111770.0,0.84397]
[1756942403318,2.63568732,111780.0,111770.0,0.81982]
[1756942404112,2.63568732,111780.0,111770.0,0.0011]
[1756942404311,2.63568732,111780.0,111770.0,0.84381]
[1756942404515,2.63568732,111780.0,111770.0,0.81966]
[1756942404716,2.63568732,111780.0,111770.0,0.84381]
[1756942405010,2.63568732,111780.0,111770.0,1.21833]
[1756942405011,0.90596416,111780.0,111770.0,1.21833]
[1756942405216,0.90596416,111780.0,111770.0,0.85753]
[1756942405706,1.27405188,111780.0,111770.0,1.21833]
[1756942405906,1.27405188,111780.0,111770.0,0.85753]
[1756942408622,1.34740188,111780.0,111770.0,0.85753]
[1756942410125,0.97931416,111780.0,111770.0,0.85753]
[1756942410425,0.97931416,111780.0,111770.0,1.21833]
[1756942410925,1.34740188,111780.0,111770.0,1.21833]
[1756942411620,0.97931416,111780.0,111770.0,1.21833]
[1756942419235,0.61122644,111780.0,111770.0,1.21833]
[1756942420029,0.97931416,111780.0,111770.0,1.21833]
[1756942429637,0.97931416,111780.0,111770.0,0.39977]
[1756942429838,0.97931416,111780.0,111770.0,1.21677]
[1756942430039,0.97931416,111780.0,111770.0,0.39977]
[1756942430227,0.97931416,111780.0,111770.0,1.21665]
[1756942430634,0.97931416,111780.0,111770.0,1.21653]
[1756942431240,0.97931416,111780.0,111770.0,0.39977]
[1756942431439,0.97931416,111780.0,111770.0,1.21697]
[1756942439543,1.36161188,111780.0,111770.0,0.38605]
[1756942439742,1.36161188,111780.0,111770.0,1.20257]
[1756942440446,0.99352416,111780.0,111770.0,1.20257]
[1756942442446,0.99352416,111780.0,111770.0,1.20245]
[1756942443747,0.99352416,111780.0,111770.0,1.21648]
[1756942444247,0.99353069,111780.0,111770.0,1.21648]
[1756942445646,1.24353069,111780.0,111770.0,1.20245]
[1756942446149,1.61161841,111780.0,111770.0,1.20245]
[1756942446847,1.61161841,111780.0,111770.0,0.84165]
[1756942447444,1.61168689,111780.0,111770.0,0.84165]
[1756942449255,1.24356493,111780.0,111770.0,0.84165]
[1756942449748,1.24356493,111780.0,111770.0,0.02525]
[1756942449955,2.34793081,111780.0,111770.0,0.84121]
[1756942453255,2.34793081,111780.0,111770.0,0.81706]
[1756942454355,2.34793081,111780.0,111770.0,0.841]
[1756942455851,1.22935493,111780.0,111770.0,0.85588]
[1756942456158,1.22935493,111780.0,111770.0,1.21668]
[1756942456762,0.61123297,111780.0,111770.0,1.46668]
[1756942457052,0.97935493,111780.0,111770.0,1.46668]
[1756942459358,0.97937481,111780.0,111770.0,1.46668]
[1756942460656,0.97937481,111780.0,111770.0,1.21668]
[1756942462552,0.97937481,111780.0,111770.0,0.40072]
[1756942462754,0.97937481,111780.0,111770.0,1.2164]
[1756942466458,0.61125285,111780.0,111770.0,1.2164]
[1756942466656,0.97937481,111780.0,111770.0,1.2164]
[1756942472162,0.99367481,111780.0,111770.0,1.2164]
[1756942472362,1.36179677,111780.0,111770.0,0.8556]
[1756942472560,1.36179677,111780.0,111770.0,0.85516]
[1756942474352,1.36179677,111780.0,111770.0,0.02504]
[1756942474560,1.36180228,111780.0,111770.0,0.84012]
[1756942480679,1.28845228,111780.0,111770.0,0.84012]
[1756942480979,2.0246962,111780.0,111770.0,0.84012]
[1756942482581,1.9418562,111780.0,111770.0,0.84012]
[1756942483481,0.82319032,111780.0,111770.0,0.85405]
[1756942488086,0.45506836,111780.0,111770.0,0.85405]
[1756942488277,0.82319032,111780.0,111770.0,0.85405]
[1756942496790,0.82319032,111780.0,111770.0,1.21485]
[1756942497498,0.8230543,111780.0,111770.0,1.21485]
[1756942497694,0.45493234,111780.0,111770.0,1.46485]
[1756942497994,0.8230543,111780.0,111770.0,1.46485]
[1756942499390,0.8230543,111780.0,111770.0,1.21485]
[1756942502691,0.79754057,111780.0,111770.0,1.21485]
[1756942502899,0.82305778,111780.0,111770.0,1.21485]
[1756942505301,0.82305573,111780.0,111770.0,1.21485]
[1756942506202,0.82305573,111780.0,111770.0,1.21325]
[1756942507501,0.8230115,111780.0,111770.0,1.21325]
[1756942509002,0.8230115,111780.0,111770.0,0.39977]
[1756942509205,0.8230115,111780.0,111770.0,1.21325]
[1756942509504,0.8230115,111780.0,111770.0,0.39977]
[1756942509804,0.8230115,111780.0,111770.0,1.21325]
[1756942511201,0.45493377,111780.0,111770.0,1.21325]
[1756942511407,0.8230115,111780.0,111770.0,1.21325]
[1756942511707,0.8230115,111780.0,111770.0,0.85245]
[1756942513209,0.8230115,111780.0,111770.0,1.21325]
[1756942513709,0.8230109,111780.0,111770.0,1.21325]
[1756942516414,0.8230109,111780.0,111770.0,0.39977]
[1756942516713,0.8230109,111780.0,111770.0,1.21325]
[1756942517316,0.8230109,111780.0,111770.0,0.39977]
[1756942517511,0.8230109,111780.0,111770.0,1.21325]
[1756942520618,0.8230109,111780.0,111770.0,0.39977]
[1756942520916,0.8230109,111780.0,111770.0,1.21325]
[1756942521417,0.8230109,111780.0,111770.0,0.39977]
[1756942521610,0.8230109,111780.0,111770.0,1.21325]
[1756942523319,0.8230109,111780.0,111770.0,0.39977]
[1756942523521,0.8230109,111780.0,111770.0,1.21321]
[1756942528923,0.8230109,111780.0,111770.0,0.39977]
[1756942529117,0.8230109,111780.0,111770.0,1.21321]
[1756942529723,0.8230109,111780.0,111770.0,0.39977]
[1756942529916,0.8230109,111780.0,111770.0,1.21321]
[1756942530523,0.8230109,111780.0,111770.0,0.39977]
[1756942530716,0.8230109,111780.0,111770.0,1.21321]
[1756942532228,0.45493317,111780.0,111770.0,1.21321]
[1756942532426,0.8230109,111780.0,111770.0,1.21321]
[1756942537225,0.8230109,111780.0,111770.0,1.21317]
[1756942538021,0.71991317,111780.0,111770.0,0.83702]
[1756942538227,2.19222409,111780.0,111770.0,0.84317]
[1756942543532,2.26557409,111780.0,111770.0,0.84317]
[1756942546333,2.26557409,111780.0,111770.0,0.02809]
[1756942546534,2.26557409,111780.0,111770.0,0.84365]
[1756942552643,2.34841409,111780.0,111770.0,0.84365]
[1756942559145,2.09841409,111780.0,111770.0,0.84365]
[1756942561552,2.50730846,111780.0,111770.0,0.81997]
[1756942564758,2.45921409,111780.0,111770.0,0.81997]
[1756942565054,2.50730846,111780.0,111770.0,0.81997]
[1756942565243,2.75730846,111780.0,111770.0,0.82037]
[1756942567456,2.75792606,111780.0,111770.0,0.82037]
[1756942570656,2.75792606,111780.0,111770.0,0.00557]
[1756942577060,1.28499754,111780.0,111770.0,0.0292]
[1756942577359,2.45983169,111780.0,111770.0,0.04377]
[1756942578061,2.45983169,111780.0,111770.0,0.0292]
[1756942578458,2.50792606,111780.0,111770.0,0.0292]
[1756942581661,2.50792606,111780.0,111770.0,0.00557]
[1756942581867,2.50792606,111780.0,111770.0,0.0292]
[1756942590178,2.50792606,111780.0,111770.0,0.04377]
[1756942591277,2.50792606,111780.0,111770.0,0.0292]
[1756942595681,2.50792606,111780.0,111770.0,0.04377]
[1756942598484,2.50792606,111780.0,111770.0,0.0292]
[1756942599789,2.14712606,111780.0,111770.0,0.0292]
[1756942599978,2.50792606,111780.0,111770.0,0.0292]
[1756942600583,2.50792606,111780.0,111770.0,0.00557]
[1756942601186,2.45983169,111780.0,111770.0,0.00557]
[1756942602176,2.50792606,111780.0,111770.0,0.00557]
[1756942605081,0.03269,111760.0,111740.0,0.3608]
[1756942605286,0.03269,111760.0,111730.0,0.39953]
[1756942605287,1.83372852,111750.0,111730.0,0.39953]
[1756942605486,0.36823213,111740.0,111730.0,0.39953]
[1756942605784,0.74374669,111740.0,111730.0,0.39953]
[1756942606375,0.75274096,111740.0,111730.0,0.39953]
[1756942606579,0.75074096,111740.0,111730.0,0.39953]
[1756942607085,0.83561096,111740.0,111730.0,0.39953]
[1756942607479,0.83561096,111740.0,111730.0,0.40053]
[1756942607779,0.90899096,111740.0,111730.0,0.40053]
[1756942608384,0.90899096,111740.0,111730.0,1.21469]
[1756942608784,0.90999096,111740.0,111730.0,1.21569]
[1756942608986,0.90999096,111740.0,111730.0,0.85489]
[1756942609289,1.27079096,111740.0,111730.0,0.85489]
[1756942615794,0.90999096,111740.0,111730.0,0.85489]
[1756942616393,0.90999096,111740.0,111730.0,1.21569]
[1756942616695,0.90999096,111740.0,111730.0,0.85489]
[1756942616897,0.54175883,111740.0,111730.0,0.85489]
[1756942617090,0.90999096,111740.0,111730.0,1.21569]
[1756942620898,0.90999096,111740.0,111730.0,0.85489]
[1756942621789,0.90999096,111740.0,111730.0,1.21569]
[1756942622398,0.90999096,111740.0,111730.0,0.85489]
[1756942626202,0.90999096,111740.0,111730.0,0.04073]
[1756942626402,0.90999096,111740.0,111730.0,0.85469]
[1756942627698,0.90999096,111740.0,111730.0,0.04073]
[1756942627898,2.37548735,111740.0,111730.0,0.85469]
[1756942628104,1.27079096,111740.0,111730.0,0.85469]
[1756942629501,1.27100855,111740.0,111730.0,0.85469]
[1756942631303,2.62635771,111740.0,111730.0,0.86392]
[1756942631706,1.52100855,111740.0,111730.0,0.86392]
[1756942632504,1.27100855,111740.0,111730.0,0.86392]
[1756942632895,0.53276456,111740.0,111730.0,1.47472]
[1756942635308,0.90121428,111740.0,111730.0,1.47472]
[1756942636407,0.90021428,111740.0,111730.0,1.47272]
[1756942636608,0.90321428,111740.0,111730.0,1.47372]
[1756942637310,0.53276456,111740.0,111730.0,1.47272]
[1756942637616,0.90421428,111740.0,111730.0,1.47372]
[1756942638013,0.90321428,111740.0,111730.0,1.47372]
[1756942638312,0.90521428,111740.0,111730.0,1.47372]
[1756942639614,0.51125,111740.0,111730.0,1.94052129]
[1756942642005,0.51125,111740.0,111730.0,1.93936129]
[1756942646927,0.51125,111740.0,111730.0,1.11608129]
[1756942647121,0.51125,111740.0,111730.0,1.93880129]
[1756942647524,0.51125,111740.0,111730.0,1.11608129]
[1756942647722,0.51125,111740.0,111730.0,1.93868129]
[1756942649527,0.51125,111740.0,111730.0,1.93848129]
[1756942650825,0.51125,111740.0,111730.0,1.11608129]
[1756942651026,0.51125,111740.0,111730.0,1.93828129]
[1756942651324,0.51125,111740.0,111730.0,1.11608129]
[1756942651528,0.51125,111740.0,111730.0,1.93808129]
[1756942656028,0.51125,111740.0,111730.0,1.94255129]
[1756942656330,0.51125,111740.0,111730.0,1.12055129]
[1756942656632,0.51125,111740.0,111730.0,1.94195129]
[1756942658429,0.51125,111740.0,111730.0,2.20715129]
[1756942660632,0.16125,111740.0,111730.0,2.20715129]
[1756942661839,0.16125,111740.0,111730.0,1.38575129]
[1756942662224,0.16125,111740.0,111730.0,2.20643129]
[1756942662726,0.16125,111740.0,111730.0,2.35503129]
[1756942663135,0.16125,111740.0,111730.0,2.20643129]
[1756942663434,0.16125,111740.0,111730.0,1.83798157]
[1756942663630,0.16125,111740.0,111730.0,2.20643129]
[1756942664026,0.16125,111740.0,111730.0,4.09699129]
[1756942664536,0.16125,111740.0,111730.0,4.09735129]
[1756942664734,0.16125,111740.0,111730.0,4.09727129]
[1756942666834,0.16125,111740.0,111730.0,3.84727129]
[1756942672942,0.16125,111740.0,111730.0,3.02631129]
[1756942673141,0.16125,111740.0,111730.0,3.84631129]
[1756942683653,0.16125,111740.0,111730.0,3.84507129]
[1756942683957,0.16125,111740.0,111730.0,3.02631129]
[1756942684159,0.16125,111740.0,111730.0,3.84507129]
[1756942684458,0.16125,111740.0,111730.0,3.02631129]
[1756942684647,0.16125,111740.0,111730.0,3.84503129]
[1756942686855,0.79125,111740.0,111730.0,2.93684519]
[1756942687052,0.79125,111740.0,111730.0,3.38679547]
[1756942687452,0.79125,111740.0,111730.0,3.75524519]
[1756942688062,0.79125,111740.0,111730.0,3.49004519]
[1756942688462,0.79125,111740.0,111730.0,3.48115972]
[1756942689562,0.79125,111740.0,111730.0,3.48094406]
[1756942691266,0.79125,111740.0,111730.0,3.48973141]
[1756942697070,0.79125,111740.0,111730.0,3.57919781]
[1756942697370,0.41125,111740.0,111730.0,3.48973141]
[1756942697572,0.78125,111740.0,111730.0,3.48973141]
[1756942698871,0.78125,111740.0,111730.0,3.57919781]
[1756942700074,0.78125,111740.0,111730.0,3.48973141]
[1756942706073,0.16125,111740.0,111730.0,3.82919771]
[1756942707876,0.13847,111740.0,111730.0,3.82919771]
[1756942708278,0.07838,111740.0,111730.0,3.82919771]
[1756942711781,0.07838,111740.0,111730.0,4.09439771]
[1756942716678,0.07638,111740.0,111730.0,4.09439771]
[1756942716884,0.07638,111740.0,111730.0,4.09539771]
[1756942717584,0.07638,111740.0,111730.0,3.83019771]
[1756942718084,0.07338,111740.0,111730.0,3.82919771]
[1756942718384,0.07438,111740.0,111730.0,3.83019771]
[1756942718884,0.07438,111740.0,111730.0,4.09539771]
[1756942724188,0.07438,111740.0,111730.0,3.27699771]
[1756942724390,0.07438,111740.0,111730.0,4.09283771]
[1756942724584,0.07438,111740.0,111730.0,3.02699771]
[1756942724784,0.07438,111740.0,111730.0,3.84295771]
[1756942726290,0.07438,111740.0,111730.0,3.02699771]
[1756942726490,0.07438,111740.0,111730.0,3.84295771]
[1756942734800,0.07438,111740.0,111730.0,3.99155771]
[1756942735105,0.07438,111740.0,111730.0,3.84295771]
[1756942739908,0.07438,111740.0,111730.0,4.20375771]
[1756942742210,0.07438,111740.0,111730.0,3.38779771]
[1756942742411,0.07438,111740.0,111730.0,4.20303771]
[1756942744411,0.07438,111740.0,111730.0,3.38779771]
[1756942744613,0.07438,111740.0,111730.0,4.20303771]
[1756942744907,0.07438,111740.0,111730.0,2.93009735]
[1756942745107,0.32438,111740.0,111730.0,4.11357141]
[1756942745510,0.70438,111740.0,111730.0,4.11361141]
[1756942745910,0.32438,111740.0,111730.0,4.11361141]
[1756942747512,0.32438,111740.0,111730.0,3.84841141]
[1756942747917,0.64438,111740.0,111730.0,3.84841141]
[1756942748717,0.65438,111740.0,111730.0,3.84841141]
[1756942749210,0.69438,111740.0,111730.0,3.83962406]
[1756942749511,0.69438,111740.0,111730.0,3.83960377]
[1756942749917,0.69438,111740.0,111730.0,3.84873716]
[1756942751412,0.69438,111740.0,111730.0,2.65611]
[1756942751619,0.69438,111740.0,111730.0,3.47139]
[1756942754223,0.69438,111740.0,111730.0,2.65611]
[1756942754422,0.69438,111740.0,111730.0,3.47139]
[1756942755518,1.07165327,111740.0,111730.0,2.65611]
[1756942755721,1.07165327,111740.0,111730.0,3.47139]
[1756942760422,1.07165327,111740.0,111730.0,2.65611]
[1756942760618,1.09762899,111740.0,111730.0,3.48087]
[1756942760921,1.09762899,111740.0,111730.0,2.27197]
[1756942761121,1.09762899,111740.0,111730.0,3.09673]
[1756942761326,1.09762899,111740.0,111730.0,2.27197]
[1756942761526,1.09762899,111740.0,111730.0,3.09661]
[1756942764726,1.09762899,111740.0,111730.0,3.09633]
[1756942765521,1.09762899,111740.0,111730.0,2.73525]
[1756942765726,1.46584276,111740.0,111730.0,1.89703]
[1756942765923,1.09762899,111740.0,111730.0,2.72107]
[1756942766126,1.09762899,111740.0,111730.0,2.7166]
[1756942767532,1.09762899,111740.0,111730.0,2.73122]
[1756942770222,1.09762899,111740.0,111730.0,1.90718]
[1756942770426,1.46584276,111740.0,111730.0,2.73078]
[1756942770624,1.09762899,111740.0,111730.0,2.73078]
[1756942771434,1.14578457,111740.0,111730.0,1.90718]
[1756942771646,1.14578457,111740.0,111730.0,2.73058]
[1756942772132,1.09762899,111740.0,111730.0,0.86363]
[1756942772333,1.14578457,111740.0,111730.0,0.86363]
[1756942772731,2.25042588,111740.0,111730.0,0.82516]
[1756942773032,2.25042588,111740.0,111730.0,0.82508]
[1756942773228,2.24942588,111740.0,111730.0,0.001]
[1756942773432,2.25542588,111740.0,111730.0,0.82504]
[1756942774238,2.27128445,111740.0,111730.0,0.82504]
[1756942774829,2.2072703,111740.0,111730.0,0.86343]
[1756942775229,2.27128445,111740.0,111730.0,0.002]
[1756942775432,2.27128445,111740.0,111720.0,0.37861]
[1756942775633,1.52073615,111730.0,111720.0,0.37861]
[1756942775829,1.87671187,111730.0,111720.0,0.35474]
[1756942776030,1.95958187,111730.0,111720.0,0.37851]
[1756942776242,1.22315433,111730.0,111720.0,0.37851]
[1756942776541,1.95958187,111730.0,111720.0,0.37851]
[1756942776741,1.95958187,111730.0,111720.0,0.38051]
[1756942777541,1.96258187,111730.0,111720.0,0.38051]
[1756942777743,1.96258187,111730.0,111720.0,0.37951]
[1756942777938,1.96658187,111730.0,111720.0,0.38051]
[1756942779141,2.03997187,111730.0,111720.0,0.38051]
[1756942779350,2.03997187,111730.0,111720.0,0.79418]
[1756942779544,1.9920908,111730.0,111720.0,0.02102]
[1756942779844,2.2420908,111730.0,111720.0,0.002]
[1756942780440,2.28997887,111730.0,111710.0,0.0382]
[1756942780636,0.41610184,111720.0,111710.0,0.0382]
[1756942780840,1.8788308,111720.0,111710.0,0.0381]
[1756942781039,2.1288308,111720.0,111700.0,0.04263]
[1756942781239,1.47285508,111710.0,111700.0,0.04263]
[1756942781445,1.87671485,111710.0,111700.0,0.04253]
[1756942782246,1.94658215,111710.0,111700.0,0.03806]
[1756942783344,1.94558215,111710.0,111700.0,0.03806]
[1756942783546,1.94758215,111710.0,111700.0,0.03906]
[1756942784046,1.95058215,111710.0,111700.0,0.04006]
[1756942785249,1.96671225,111710.0,111700.0,0.04006]
[1756942785446,1.96671225,111710.0,111700.0,0.01655]
[1756942785646,1.96671225,111710.0,111700.0,0.002]
[1756942785846,1.96671225,111710.0,111700.0,0.03913]
[1756942787754,1.96671225,111710.0,111700.0,0.86045]
[1756942789149,0.86107094,111710.0,111700.0,0.85945]
[1756942789349,0.86707094,111710.0,111700.0,0.86045]
[1756942789846,0.86407094,111710.0,111700.0,0.85945]
[1756942790046,0.87107094,111710.0,111700.0,0.86145]
[1756942792748,0.87107094,111710.0,111700.0,1.11145]
[1756942792940,0.85496537,111710.0,111700.0,1.11145]
[1756942795051,0.92838573,111710.0,111700.0,1.11145]
[1756942796759,0.92838573,111710.0,111700.0,1.11592]
[1756942797547,0.88045679,111710.0,111700.0,1.11592]
[1756942799053,0.92838573,111710.0,111700.0,1.11592]
[1756942799252,0.92838573,111710.0,111700.0,0.86592]
[1756942799954,0.44237572,111710.0,111700.0,1.11592]
[1756942800454,0.44237572,111710.0,111700.0,0.2946]
[1756942800652,0.36737572,111710.0,111700.0,1.11476]
[1756942801753,0.73558949,111710.0,111700.0,1.20425]
[1756942802957,0.36737572,111710.0,111700.0,0.2946]
[1756942803155,0.36737572,111710.0,111700.0,1.11464]
[1756942803351,0.73558949,111710.0,111700.0,1.20413]
[1756942804659,0.73558949,111710.0,111700.0,0.38409]
[1756942804957,0.73558949,111710.0,111700.0,1.20401]
[1756942805958,0.75868949,111710.0,111700.0,0.38409]
[1756942806160,0.75868949,111710.0,111700.0,1.20385]
[1756942809661,0.75868949,111710.0,111700.0,1.11396]
[1756942811668,0.75897461,111710.0,111700.0,1.11396]
[1756942812165,0.75897461,111710.0,111700.0,1.2034497]
[1756942812364,0.39047572,111710.0,111700.0,1.2034497]
[1756942812565,0.75897461,111710.0,111700.0,1.2034497]
[1756942814762,0.75897461,111710.0,111700.0,0.0446]
[1756942814963,1.02362461,111710.0,111700.0,0.03098]
[1756942815160,1.02362461,111710.0,111700.0,0.85138]
[1756942815465,1.04937453,111710.0,111700.0,0.85138]
[1756942815667,1.02362461,111710.0,111700.0,0.85138]
[1756942816270,1.02362461,111710.0,111700.0,0.86606]
[1756942817269,1.10651461,111710.0,111700.0,0.86606]
[1756942817573,1.09951461,111710.0,111700.0,0.86406]
[1756942817871,1.10451461,111710.0,111700.0,0.86506]
[1756942818171,1.09851461,111710.0,111700.0,0.86406]
[1756942818372,1.10151461,111710.0,111700.0,0.86506]
[1756942819269,1.10151461,111710.0,111700.0,0.85002]
[1756942819873,1.10151461,111710.0,111700.0,0.02998]
[1756942820074,1.10151461,111710.0,111700.0,0.84994]
[1756942820368,1.10151461,111710.0,111700.0,0.02998]
[1756942820566,1.10151461,111710.0,111700.0,0.00647]
[1756942820771,1.10151461,111710.0,111700.0,0.84908]
[1756942821174,1.10151461,111710.0,111700.0,0.86376]
[1756942821373,1.10151461,111710.0,111700.0,0.84908]
[1756942821771,0.46836572,111710.0,111700.0,0.86376]
[1756942821971,0.83686461,111710.0,111700.0,0.86376]
[1756942822167,0.49415172,111710.0,111700.0,0.86376]
[1756942822473,0.86265061,111710.0,111700.0,0.86376]
[1756942822676,0.83686461,111710.0,111700.0,0.86376]
[1756942823575,0.85151461,111710.0,111700.0,0.86376]
[1756942823771,0.87730461,111710.0,111700.0,0.86376]
[1756942831581,0.87730461,111710.0,111700.0,0.84988]
[1756942833684,0.86265461,111710.0,111700.0,0.86456]
[1756942834880,0.87730461,111710.0,111700.0,0.84988]
[1756942837584,0.87730461,111710.0,111700.0,0.02928]
[1756942837783,0.87730461,111710.0,111700.0,0.84972]
[1756942839287,0.87730461,111710.0,111700.0,0.02928]
[1756942839487,0.87730461,111710.0,111700.0,0.84948]
[1756942841189,0.87730461,111710.0,111700.0,0.86355]
[1756942846388,0.87730461,111710.0,111700.0,0.84948]
[1756942848492,0.87730461,111710.0,111700.0,0.86355]
[1756942854896,0.87737976,111710.0,111700.0,0.04335]
[1756942855092,0.87737976,111710.0,111700.0,0.84768]
[1756942860704,0.87737976,111710.0,111700.0,0.86175]
[1756942871018,0.86272976,111710.0,111700.0,0.86175]
[1756942873420,0.86277113,111710.0,111700.0,0.86175]
[1756942874624,0.86277113,111710.0,111700.0,0.04335]
[1756942874822,0.87662113,111710.0,111700.0,0.86055]
[1756942875024,0.87662113,111710.0,111700.0,0.04335]
[1756942875322,0.87662113,111710.0,111700.0,0.86055]
[1756942876025,0.87662113,111710.0,111700.0,0.04335]
[1756942876213,0.87662113,111710.0,111700.0,0.86055]
[1756942876418,0.87662113,111710.0,111700.0,0.02928]
[1756942876726,1.12662113,111710.0,111700.0,0.82367]
[1756942877417,1.12662113,111710.0,111700.0,0.84866]
[1756942882224,1.12662113,111710.0,111700.0,0.03146]
[1756942882429,1.12662113,111710.0,111700.0,0.84918]
[1756942882732,1.12662113,111710.0,111700.0,0.03146]
[1756942883033,1.12662113,111710.0,111700.0,0.84902]
[1756942891640,1.12662113,111710.0,111700.0,0.86274]
[1756942893642,1.12662113,111710.0,111700.0,0.03146]
[1756942893838,1.12662113,111710.0,111700.0,0.8487]
[1756942897247,1.12662113,111710.0,111700.0,0.86242]
[1756942897939,0.75808087,111710.0,111700.0,0.86242]
[1756942898139,1.12662113,111710.0,111700.0,0.86242]
[1756942898744,1.11277113,111710.0,111700.0,0.86242]
[1756942898946,1.12628113,111710.0,111700.0,0.86242]
[1756942914352,0.86277113,111710.0,111700.0,1.2019059]
[1756942917167,0.49423087,111710.0,111700.0,1.2019059]
[1756942917361,0.47113087,111710.0,111700.0,1.2019059]
[1756942917567,0.83967113,111710.0,111700.0,1.2019059]
[1756942918166,0.81380598,111710.0,111700.0,1.2019059]
[1756942919265,0.44526572,111710.0,111700.0,0.9519059]
[1756942925369,0.46842572,111710.0,111700.0,0.1346663]
[1756942925571,0.83696598,111710.0,111700.0,0.9517463]
[1756942927778,0.46842572,111710.0,111700.0,0.9517463]
[1756942930176,0.46842572,111710.0,111700.0,1.6733463]
[1756942933785,0.18745,111710.0,111700.0,1.6733463]
[1756942934183,0.18745,111710.0,111700.0,1.6732263]
[1756942937288,0.18745,111710.0,111700.0,3.5644263]
[1756942939689,0.16429,111710.0,111700.0,3.5644263]
[1756942939891,0.16429,111710.0,111700.0,4.182861]
[1756942940493,0.16429,111710.0,111700.0,4.448061]
[1756942941894,0.15929,111710.0,111700.0,4.447061]
[1756942942193,0.16229,111710.0,111700.0,4.448061]
[1756942942392,0.15929,111710.0,111700.0,4.447061]